fUSD/lending_fUSD_20260502
["ID","MTS","AMOUNT","RATE_DAILY","PERIOD"]
[421452508,1777680631000,-885.56582339,0.00014169,2]
[421452562,1777680637000,-2172.47643534,0.00015846,2]
[421452561,1777680637000,-1220.0,0.00015371,2]
[421452559,1777680637000,-160.0,0.00015337,2]
[421452558,1777680637000,-162.38278084,0.00015337,2]
[421452557,1777680637000,-337.12578382,0.00014169,2]
[421452560,1777680637000,-705.015,0.00015371,2]
[421452565,1777680638000,-468.12794408,0.00015946,2]
[421452564,1777680638000,-4029.7759838,0.00015946,2]
[421452563,1777680638000,-340.50566466,0.00015846,2]
[421452620,1777680640000,-50800.45293783,0.00015946,2]
[421452621,1777680640000,-252.63374017,0.00015946,2]
[421452622,1777680640000,-596.298,0.00015946,2]
[421452637,1777680643000,-1200.0,0.00015946,2]
[421452636,1777680643000,-416.0,0.00014226,2]
[421452638,1777680644000,-905.43859922,0.00015946,2]
[421452646,1777680646000,-2187.48845603,0.00015946,2]
[421452659,1777680983000,1000.0,0.00030136,120]
[421452660,1777681053000,249.69,0.00027999,120]
[421452665,1777681549000,-988.96509714,0.00013279,2]
[421452664,1777681549000,-250.0,0.00013,2]
[421452666,1777681647000,-386.4817542,0.00013279,2]
[421452667,1777681767000,1596.54753577,0.0001,2]
[421452676,1777681832000,-247.78955244,0.00013823,2]
[421452677,1777681832000,-970.44892758,0.00013823,2]
[421452675,1777681832000,-431.28492514,0.00013279,2]
[421452671,1777681832000,-1632.30847194,0.00013279,2]
[421452670,1777681832000,-160.0,0.00013268,2]
[421452674,1777681832000,-569.13169042,0.00013279,2]
[421452673,1777681832000,-124.1365331,0.00013279,2]
[421452678,1777681832000,-760.36475751,0.00013823,2]
[421452672,1777681832000,-790.18152806,0.00013279,2]
[421452669,1777681832000,-2422.49,0.00013014,2]
[421452687,1777681832000,-300.0,0.00015,2]
[421452679,1777681832000,-521.39676247,0.00013823,2]
[421452680,1777681832000,-202.51593286,0.00013823,2]
[421452681,1777681832000,-1553.72061193,0.00013987,2]
[421452683,1777681832000,-162.38278084,0.00014057,2]
[421452685,1777681832000,-2500.0,0.000143,2]
[421452684,1777681832000,-1220.0,0.00014226,2]
[421452688,1777681832000,-2080.662,0.000158,2]
[421452689,1777681832000,-1817.2452877,0.00015838,2]
[421452691,1777681832000,-798.91796742,0.000159,2]
[421452690,1777681832000,-5900.93307651,0.000159,2]
[421452682,1777681832000,-723.91269507,0.00013987,2]
[421452694,1777681837000,-695.9,0.000159,2]
[421452701,1777681840000,-323.311332,0.000159,2]
[421452700,1777681840000,-2092.17979885,0.000159,2]
[421452698,1777681840000,-22959.9999998,0.000159,2]
[421452696,1777681840000,-253.14830017,0.000159,2]
[421452697,1777681840000,-2078.89105707,0.000159,2]
[421452699,1777681840000,-2200.0,0.000159,2]
[421452706,1777681843000,-7829.78842338,0.000159,2]
[421452707,1777681843000,-1865.87741972,0.000159,2]
[421452708,1777681843000,-1664.0,0.00014616,2]
[421452710,1777681843000,-152.0,0.00015998,7]
[421452711,1777681843000,-152.0,0.00015998,7]
[421452712,1777681843000,-1522.8,0.00016438,2]
[421452713,1777681843000,-735.64401155,0.00016438,2]
[421452709,1777681843000,-1945.48048868,0.000159,2]
[421452734,1777681846000,-1522.8,0.0001841,2]
[421452736,1777681846000,-166.66,0.00018567,2]
[421452738,1777681846000,-500.0,0.00018754,2]
[421452737,1777681846000,-476.37,0.00018631,2]
[421452744,1777681846000,-2500.0,0.0001951,2]
[421452743,1777681846000,-166.66,0.00019317,2]
[421452745,1777681846000,-166.66,0.00019692,2]
[421452735,1777681846000,-200.0,0.00018422,2]
[421452741,1777681846000,-400.0,0.00019,2]
[421452739,1777681846000,-166.66,0.00018942,2]
[421452747,1777681846000,-7616.4072,0.000199,2]
[421452749,1777681846000,-212.16,0.0002,2]
[421452742,1777681846000,-2000.0,0.00019302,2]
[421452733,1777681846000,-166.66,0.00018192,2]
[421452730,1777681846000,-521.0,0.00017472,2]
[421452751,1777681846000,-298.0,0.0002,2]
[421452732,1777681846000,-166.66,0.00017817,2]
[421452726,1777681846000,-174.15,0.00017338,2]
[421452727,1777681846000,-150.0,0.00017469,2]
[421452729,1777681846000,-1450.0,0.00017472,2]
[421452731,1777681846000,-1664.0,0.00017616,2]
[421452725,1777681846000,-350.0,0.00017,2]
[421452724,1777681846000,-16399.8,0.0001697,2]
[421452721,1777681846000,-2395.0,0.00016769,2]
[421452722,1777681846000,-8382.84,0.00016922,2]
[421452720,1777681846000,-250.0,0.0001656,2]
[421452723,1777681846000,-3778.7,0.00016922,2]
[421452718,1777681846000,-2055.35598845,0.00016438,2]
[421452719,1777681846000,-210.4287229,0.00016555,2]
[421452728,1777681846000,-553.0,0.00017472,2]
[421452757,1777681846000,-154.0,0.0002,2]
[421452740,1777681846000,-200.0,0.00018948,2]
[421452753,1777681846000,-2658.0,0.0002,2]
[421452789,1777681846000,-500.0,0.00020223,2]
[421452788,1777681846000,-500.0,0.00020223,2]
[421452790,1777681846000,-107.46280581,0.00020223,2]
[421452784,1777681846000,-500.0,0.00020223,2]
[421452783,1777681846000,-500.0,0.00020223,2]
[421452786,1777681846000,-500.0,0.00020223,2]
[421452787,1777681846000,-500.0,0.00020223,2]
[421452755,1777681846000,-503.0,0.0002,2]
[421452775,1777681846000,-500.0,0.00020223,2]
[421452782,1777681846000,-500.0,0.00020223,2]
[421452778,1777681846000,-500.0,0.00020223,2]
[421452777,1777681846000,-500.0,0.00020223,2]
[421452781,1777681846000,-500.0,0.00020223,2]
[421452779,1777681846000,-500.0,0.00020223,2]
[421452780,1777681846000,-500.0,0.00020223,2]
[421452785,1777681846000,-500.0,0.00020223,2]
[421452774,1777681846000,-500.0,0.00020223,2]
[421452773,1777681846000,-500.0,0.00020223,2]
[421452772,1777681846000,-500.0,0.00020223,2]
[421452771,1777681846000,-500.0,0.00020223,2]
[421452770,1777681846000,-500.0,0.00020223,2]
[421452769,1777681846000,-500.0,0.00020223,2]
[421452763,1777681846000,-1806.0,0.0002,2]
[421452764,1777681846000,-591.0,0.0002,2]
[421452761,1777681846000,-518.0,0.0002,2]
[421452767,1777681846000,-476.37,0.00020001,2]
[421452759,1777681846000,-356.0,0.0002,2]
[421452765,1777681846000,-153.0,0.0002,2]
[421452768,1777681846000,-500.0,0.00020223,2]
[421452766,1777681846000,-625.0,0.0002,2]
[421452776,1777681846000,-500.0,0.00020223,2]
[421452792,1777681859000,6604.7703193,0.000107,2]
[421452793,1777682113000,3406.31,0.00011,2]
[421452794,1777682116000,3406.31,0.00011,2]
[421452795,1777682511000,1142.2,0.00030137,120]
[421452798,1777683032000,-160.0,0.00012486,2]
[421452799,1777683032000,-384.66226685,0.00012493,2]
[421452801,1777683032000,-250.0,0.00013,2]
[421452800,1777683032000,-3406.31,0.000125,2]
[421452803,1777683032000,-250.0,0.00013735,2]
[421452802,1777683032000,-2500.0,0.00013735,2]
[421452804,1777683032000,-162.38278084,0.00014623,2]
[421452810,1777683032000,-654.83188622,0.00016356,2]
[421452805,1777683032000,-1432.74521511,0.00014814,2]
[421452806,1777683032000,-300.0,0.00015,2]
[421452808,1777683032000,-416.0,0.00015049,2]
[421452807,1777683032000,-928.0,0.00015049,2]
[421452809,1777683032000,-2971.75724778,0.00016356,2]
[421452813,1777683032000,-350.0,0.00017,2]
[421452814,1777683032000,-200.0,0.00017261,2]
[421452825,1777683032000,-2769.66149264,0.00018162,2]
[421452824,1777683032000,-4438.00906479,0.00018162,2]
[421452812,1777683032000,-618.83188622,0.00016438,2]
[421452821,1777683032000,-351.37857136,0.00018162,2]
[421452820,1777683032000,-1543.58764319,0.00018162,2]
[421452822,1777683032000,-577.95859147,0.00018162,2]
[421452817,1777683032000,-928.0,0.00018049,2]
[421452815,1777683032000,-3174.76819272,0.000179,42]
[421452818,1777683032000,-416.0,0.00018049,2]
[421452816,1777683032000,-999.99,0.000179,2]
[421452811,1777683032000,-650.16811378,0.00016438,2]
[421452819,1777683032000,-698.76998731,0.00018162,2]
[421453126,1777683041000,-3803.0,0.00018162,2]
[421453127,1777683041000,-1891.25,0.00018162,2]
[421453125,1777683041000,-9617.69284702,0.00018162,2]
[421453155,1777683043000,-993.80145634,0.00018162,2]
[421453154,1777683043000,-381.36631827,0.00018162,2]
[421453153,1777683043000,-1208.68179918,0.00018162,2]
[421453169,1777683046000,-2806.4547812,0.00017002,2]
[421453168,1777683046000,-1664.0,0.00015049,2]
[421453170,1777683046000,-658.5452188,0.00018049,2]
[421453177,1777683194000,5000.0,0.000301,120]
[421453178,1777683284000,500.0,0.00029452,120]
[421453179,1777683313000,3939.53,0.00011,2]
[421453180,1777683315000,3939.53,0.00011,2]
[421453185,1777683488000,65000.0,0.00030136,120]
[421453187,1777683874000,180.286818,0.000301,120]
[421453188,1777683901000,180.286809,0.000301,120]
[421453189,1777683931000,-2165.43512264,0.000125,2]
[421453210,1777684232000,-535.55319238,0.00015048,2]
[421453205,1777684232000,-309.409328,0.00014025,2]
[421453207,1777684232000,-229.44680762,0.00015048,2]
[421453193,1777684232000,-491.0360497,0.000125,2]
[421453200,1777684232000,-544.02,0.000125,2]
[421453195,1777684232000,-342.48315084,0.000125,2]
[421453212,1777684232000,-443.30747778,0.00015048,2]
[421453190,1777684232000,-351.02307539,0.000125,2]
[421453203,1777684232000,-45.53260143,0.000125,2]
[421453211,1777684232000,-756.69252222,0.00015048,2]
[421453218,1777684232000,-1232.68337832,0.00016448,2]
[421453214,1777684232000,-416.0,0.00015099,2]
[421453213,1777684232000,-1664.0,0.00015099,2]
[421453222,1777684232000,-3179.41933251,0.00016448,2]
[421453221,1777684232000,-2212.01251569,0.00016448,2]
[421453219,1777684232000,-2800.70070936,0.00016448,2]
[421453223,1777684232000,-1763.97926805,0.00016448,2]
[421453217,1777684232000,-2423.82303579,0.00016448,2]
[421453215,1777684232000,-162.38278084,0.00016168,2]
[421453216,1777684232000,-1163.3,0.00016438,2]
[421453220,1777684232000,-468.75595281,0.00016448,2]
[421453230,1777684238000,-1454.81262178,0.00016966,2]
[421453229,1777684238000,-2491.95373767,0.00016966,2]
[421453227,1777684238000,-248.47022834,0.00016552,2]
[421453228,1777684238000,-268.23801583,0.00016966,2]
[421453226,1777684238000,-667.52977166,0.00016552,2]
[421453225,1777684238000,-56.38580747,0.00016448,2]
[421453243,1777684240000,-22199.82503466,0.00016966,2]
[421453246,1777684240000,-885.1413525,0.00016966,2]
[421453245,1777684240000,-1190.0,0.00016966,2]
[421453244,1777684240000,-574.53709999,0.00016966,2]
[421453269,1777684246000,-12393.51142977,0.00016966,2]
[421453270,1777684246000,-530.0,0.00017289,2]
[421453271,1777684246000,-1390.0,0.00017289,2]
[421453268,1777684246000,-928.0,0.00015545,2]
[421453274,1777684246000,-1664.0,0.00018099,2]
[421453273,1777684246000,-2174.89,0.000178,2]
[421453275,1777684246000,-416.0,0.00018099,2]
[421453276,1777684246000,-151.0,0.00018162,2]
[421453272,1777684246000,-478.0,0.00017289,2]
[421453277,1777684246000,-1163.3,0.0001841,2]
[421453278,1777684246000,-11978.61,0.0001841,2]
[421453281,1777684246000,-665.6291,0.0001841,2]
[421453279,1777684246000,-9999.99,0.0001841,2]
[421453282,1777684246000,-665.6291,0.0001841,2]
[421453289,1777684246000,-806.896717,0.0001841,2]
[421453284,1777684246000,-151.0,0.0001841,2]
[421453285,1777684246000,-151.0,0.0001841,2]
[421453286,1777684246000,-806.896717,0.0001841,2]
[421453283,1777684246000,-665.6291,0.0001841,2]
[421453287,1777684246000,-806.896717,0.0001841,2]
[421453288,1777684246000,-806.896717,0.0001841,2]
[421453291,1777684246000,-117.88970232,0.0001841,2]
[421453290,1777684246000,-151.0,0.0001841,2]
[421453280,1777684246000,-665.6291,0.0001841,2]
[421453292,1777684247000,-33.11029768,0.0001841,2]
[421453293,1777684247000,-624.9237251,0.00018545,2]
[421453315,1777684756000,1855.9930222,0.0003013,120]
[421453317,1777684872000,500.0,0.0003013,120]
[421453319,1777685152000,-250.0,0.00013,2]
[421453320,1777685152000,-1092.76094676,0.00013111,2]
[421453321,1777685241000,-387.99848098,0.00013111,2]
[421453323,1777685412000,357.57,0.00011,2]
[421453339,1777685432000,-1200.0,0.0001557,2]
[421453337,1777685432000,-138.90643754,0.00015,2]
[421453336,1777685432000,-988.96509714,0.00014422,2]
[421453335,1777685432000,-772.46119498,0.0001323,2]
[421453338,1777685432000,-161.09356246,0.00015,2]
[421453342,1777685432000,-150.99,0.00015702,2]
[421453334,1777685432000,-160.0,0.00013199,2]
[421453341,1777685432000,-436.0,0.00015701,2]
[421453340,1777685432000,-2201.99433307,0.00015571,6]
[421453344,1777685432000,-930.0,0.00015702,2]
[421453346,1777685432000,-1664.0,0.00015703,2]
[421453352,1777685432000,-444.0,0.00016438,2]
[421453350,1777685432000,-3039.98414431,0.00016438,2]
[421453347,1777685432000,-416.973,0.00015703,2]
[421453345,1777685432000,-7191.49,0.00015702,2]
[421453349,1777685432000,-969.4,0.00016438,2]
[421453348,1777685432000,-6143.74,0.00016116,2]
[421453351,1777685432000,-6444.33781323,0.00016438,2]
[421453343,1777685432000,-1525.93,0.00015702,2]
[421453359,1777685438000,-1165.45033526,0.00016438,2]
[421453384,1777685440000,-713.67957342,0.00016438,2]
[421453386,1777685440000,-1902.4269139,0.00016438,2]
[421453389,1777685440000,-761.44,0.00016438,2]
[421453390,1777685440000,-1963.16038131,0.00016438,2]
[421453392,1777685440000,-1910.0,0.00016438,2]
[421453399,1777685440000,-2597.29979833,0.00016742,17]
[421453403,1777685440000,-29.56210512,0.00017138,2]
[421453395,1777685440000,-833.83,0.00016438,2]
[421453397,1777685440000,-395.25347582,0.00016732,2]
[421453402,1777685440000,-1680.0,0.00017117,2]
[421453401,1777685440000,-350.0,0.00017,2]
[421453393,1777685440000,-6655.51083857,0.00016438,2]
[421453414,1777685442000,-2157.45019949,0.00017307,2]
[421453413,1777685442000,-180.328956,0.00017138,2]
[421453417,1777685442000,-24048.07975741,0.00017307,2]
[421453416,1777685442000,-898.7105359,0.00017307,2]
[421453415,1777685442000,-2017.53470151,0.00017307,2]
[421453420,1777685443000,-853.9665,0.00017307,2]
[421453418,1777685443000,-1838.8604776,0.00017307,2]
[421453419,1777685443000,-11363.68049788,0.00017307,2]
[421453459,1777685446000,-465.13612668,0.00016147,2]
[421453461,1777685446000,-6.86387332,0.00016147,2]
[421453458,1777685446000,-194.17294728,0.00014422,2]
[421453462,1777685446000,-867.18496935,0.00017307,2]
[421453463,1777685446000,-940.23353293,0.00017307,2]
[421453460,1777685446000,-456.0,0.00016147,2]
[421453502,1777685691000,822.66,0.00030137,120]
[421453503,1777685711000,387.63,0.000119,2]
[421453505,1777685863000,205.82,0.000104,2]
[421453507,1777686046000,436.87147883,0.00027999,120]
[421453508,1777686188000,157.18046373,0.00027397,120]
[421453526,1777686637000,-250.0,0.00013,2]
[421453530,1777686637000,-300.0,0.00015,2]
[421453528,1777686637000,-197.48492999,0.000143,2]
[421453529,1777686637000,-166.66,0.00014926,2]
[421453527,1777686637000,-201.21016268,0.000139,2]
[421453533,1777686637000,-457.63520644,0.00015671,2]
[421453535,1777686637000,-288.0,0.00015671,2]
[421453531,1777686637000,-166.66,0.0001524,2]
[421453532,1777686637000,-166.66,0.00015554,2]
[421453534,1777686637000,-742.36479356,0.00015671,2]
[421453536,1777686638000,-28.59190094,0.00015672,2]
[421453537,1777686638000,-508.57257251,0.00015672,2]
[421453538,1777686638000,-800.71742749,0.00015672,2]
[421453539,1777686638000,-6657.42045116,0.00015672,2]
[421453546,1777686638000,-500.0,0.00015885,2]
[421453551,1777686638000,-2500.0,0.00016261,2]
[421453544,1777686638000,-200.0,0.00015751,2]
[421453540,1777686638000,-559.53366536,0.00015672,2]
[421453543,1777686638000,-150.99,0.00015672,2]
[421453545,1777686638000,-166.66,0.00015869,2]
[421453542,1777686638000,-203.91463585,0.00015672,2]
[421453541,1777686638000,-736.12857669,0.00015672,2]
[421453547,1777686638000,-480.0,0.00016002,2]
[421453548,1777686638000,-166.66,0.00016183,2]
[421453550,1777686638000,-1664.0,0.00016234,2]
[421453561,1777686638000,-197.77823155,0.00016547,2]
[421453565,1777686638000,-427.38710752,0.00016599,2]
[421453569,1777686638000,-3789.06506898,0.000166,2]
[421453567,1777686638000,-269.8693297,0.000166,2]
[421453558,1777686638000,-500.0,0.00016547,2]
[421453556,1777686638000,-166.66,0.00016497,2]
[421453559,1777686638000,-500.0,0.00016547,2]
[421453560,1777686638000,-500.0,0.00016547,2]
[421453554,1777686638000,-480.0,0.00016402,2]
[421453555,1777686638000,-894.4,0.00016438,2]
[421453562,1777686638000,-492.77377106,0.00016569,2]
[421453553,1777686638000,-854.81519089,0.00016269,2]
[421453552,1777686638000,-1145.18480911,0.00016269,2]
[421453557,1777686638000,-160.0,0.00016536,2]
[421453549,1777686638000,-416.0,0.00016234,2]
[421453584,1777686639000,-715.07517109,0.000166,2]
[421453587,1777686640000,-1309.94642264,0.000166,2]
[421453585,1777686640000,-1188.71693675,0.000166,2]
[421453586,1777686640000,-2836.76367354,0.000166,2]
[421453589,1777686640000,-1109.5857,0.000166,2]
[421453590,1777686640000,-2414.10485394,0.000166,2]
[421453588,1777686640000,-9944.29331839,0.000166,2]
[421453606,1777686642000,-412.5,0.000166,2]
[421453605,1777686642000,-305.22,0.00016234,2]
[421453608,1777686643000,-1751.70942853,0.000166,2]
[421453607,1777686643000,-470.0,0.000166,2]
[421453610,1777686645000,-1739.67889926,0.000166,2]
[421453629,1777686646000,-500.0,0.0001672,2]
[421453640,1777686646000,-500.0,0.0001672,2]
[421453634,1777686646000,-500.0,0.0001672,2]
[421453637,1777686646000,-500.0,0.0001672,2]
[421453639,1777686646000,-500.0,0.0001672,2]
[421453632,1777686646000,-500.0,0.0001672,2]
[421453636,1777686646000,-500.0,0.0001672,2]
[421453635,1777686646000,-500.0,0.0001672,2]
[421453628,1777686646000,-500.0,0.0001672,2]
[421453643,1777686646000,-500.0,0.0001672,2]
[421453638,1777686646000,-500.0,0.0001672,2]
[421453633,1777686646000,-500.0,0.0001672,2]
[421453630,1777686646000,-500.0,0.0001672,2]
[421453624,1777686646000,-500.0,0.0001672,2]
[421453623,1777686646000,-500.0,0.0001672,2]
[421453626,1777686646000,-500.0,0.0001672,2]
[421453625,1777686646000,-581.3688804,0.0001672,2]
[421453622,1777686646000,-500.0,0.0001672,2]
[421453619,1777686646000,-230.47571712,0.0001672,2]
[421453621,1777686646000,-500.0,0.0001672,2]
[421453620,1777686646000,-500.0,0.0001672,2]
[421453616,1777686646000,-174.15,0.000167,2]
[421453615,1777686646000,-150.0,0.00016698,2]
[421453618,1777686646000,-500.0,0.0001672,2]
[421453631,1777686646000,-500.0,0.0001672,2]
[421453612,1777686646000,-266.43034737,0.000166,2]
[421453613,1777686646000,-9101.45608817,0.000166,2]
[421453614,1777686646000,-200.0,0.00016611,2]
[421453611,1777686646000,-2293.72232384,0.000166,2]
[421453627,1777686646000,-500.0,0.0001672,2]
[421453642,1777686646000,-500.0,0.0001672,2]
[421453617,1777686646000,-163.48831972,0.0001672,2]
[421453645,1777686646000,-500.0,0.0001672,2]
[421453641,1777686646000,-500.0,0.0001672,2]
[421453672,1777686646000,-500.0,0.0001672,2]
[421453674,1777686646000,-500.0,0.0001672,2]
[421453676,1777686646000,-112442.61767163,0.00016721,2]
[421453675,1777686646000,-500.0,0.0001672,2]
[421453673,1777686646000,-500.0,0.0001672,2]
[421453677,1777686646000,-649.6768,0.00016721,2]
[421453665,1777686646000,-500.0,0.0001672,2]
[421453669,1777686646000,-500.0,0.0001672,2]
[421453670,1777686646000,-354.11209948,0.0001672,2]
[421453666,1777686646000,-500.0,0.0001672,2]
[421453671,1777686646000,-500.0,0.0001672,2]
[421453663,1777686646000,-500.0,0.0001672,2]
[421453662,1777686646000,-500.0,0.0001672,2]
[421453660,1777686646000,-500.0,0.0001672,2]
[421453678,1777686646000,-459.58986104,0.00016721,2]
[421453659,1777686646000,-500.0,0.0001672,2]
[421453654,1777686646000,-500.0,0.0001672,2]
[421453644,1777686646000,-500.0,0.0001672,2]
[421453656,1777686646000,-500.0,0.0001672,2]
[421453648,1777686646000,-500.0,0.0001672,2]
[421453649,1777686646000,-500.0,0.0001672,2]
[421453650,1777686646000,-500.0,0.0001672,2]
[421453655,1777686646000,-500.0,0.0001672,2]
[421453646,1777686646000,-500.0,0.0001672,2]
[421453653,1777686646000,-500.0,0.0001672,2]
[421453652,1777686646000,-500.0,0.0001672,2]
[421453651,1777686646000,-500.0,0.0001672,2]
[421453661,1777686646000,-500.0,0.0001672,2]
[421453658,1777686646000,-500.0,0.0001672,2]
[421453647,1777686646000,-500.0,0.0001672,2]
[421453657,1777686646000,-500.0,0.0001672,2]
[421453679,1777686912000,8028.55,0.00011,2]
[421453680,1777686914000,8028.55,0.000119,2]
[421453691,1777687513000,433.08,0.00011,2]
[421453692,1777687515000,433.08,0.000119,2]
[421453695,1777687559000,-1200.0,0.00015599,2]
[421453696,1777687559000,-314.7518173,0.000156,2]
[421453694,1777687559000,-300.0,0.00015599,2]
[421453693,1777687559000,-268.42203117,0.000155,2]
[421453717,1777687832000,-149.50222202,0.000156,2]
[421453700,1777687832000,-178.94802078,0.000155,2]
[421453702,1777687832000,-2477.35197922,0.000156,2]
[421453701,1777687832000,-1045.0,0.00015599,2]
[421453713,1777687832000,-673.02509145,0.000156,2]
[421453712,1777687832000,-4878.17292933,0.000156,2]
[421453714,1777687832000,-258.6786377,0.000156,2]
[421453716,1777687832000,-350.49777798,0.000156,2]
[421453715,1777687832000,-241.3213623,0.000156,2]
[421453718,1777687832000,-433.08,0.000156,2]
[421453727,1777687832000,-1224.425,0.00016224,2]
[421453720,1777687832000,-1131.42162512,0.00015669,2]
[421453724,1777687832000,-2000.0,0.00015796,2]
[421453722,1777687832000,-200.0,0.00015738,2]
[421453725,1777687832000,-183.94,0.00015905,2]
[421453721,1777687832000,-150.0,0.00015673,2]
[421453723,1777687832000,-1142.09163985,0.00015778,8]
[421453719,1777687832000,-3000.0,0.00015668,10]
[421453726,1777687832000,-178.94802077,0.00015943,2]
[421453728,1777687832000,-150.99,0.00016224,2]
[421453729,1777687832000,-589.92042732,0.00016224,2]
[421453744,1777687838000,-22180.35,0.00016468,2]
[421453749,1777687838000,-175.70765338,0.00016477,2]
[421453760,1777687838000,-500.0,0.00016477,2]
[421453750,1777687838000,-500.0,0.00016477,2]
[421453761,1777687838000,-500.0,0.00016477,2]
[421453751,1777687838000,-500.0,0.00016477,2]
[421453758,1777687838000,-500.0,0.00016477,2]
[421453755,1777687838000,-500.0,0.00016477,2]
[421453752,1777687838000,-500.0,0.00016477,2]
[421453747,1777687838000,-419.5127918,0.00016477,2]
[421453756,1777687838000,-500.0,0.00016477,2]
[421453754,1777687838000,-500.0,0.00016477,2]
[421453742,1777687838000,-819.9,0.00016438,2]
[421453740,1777687838000,-1371.79262984,0.00016386,2]
[421453743,1777687838000,-166.692269,0.00016438,2]
[421453739,1777687838000,-178.94802077,0.00016386,2]
[421453741,1777687838000,-5975.42699689,0.00016386,2]
[421453759,1777687838000,-500.0,0.00016477,2]
[421453737,1777687838000,-1271.974,0.00016234,2]
[421453748,1777687838000,-500.0,0.00016477,2]
[421453738,1777687838000,-151.56,0.00016234,4]
[421453735,1777687838000,-1355.221,0.00016234,2]
[421453733,1777687838000,-3868.41167023,0.00016224,2]
[421453736,1777687838000,-1049.0,0.00016234,2]
[421453734,1777687838000,-3548.868,0.00016234,2]
[421453732,1777687838000,-591.21790245,0.00016224,2]
[421453745,1777687838000,-22180.35,0.00016468,2]
[421453757,1777687838000,-500.0,0.00016477,2]
[421453746,1777687838000,-366.22466719,0.00016477,2]
[421453763,1777687838000,-500.0,0.00016477,2]
[421453753,1777687838000,-500.0,0.00016477,2]
[421453798,1777687838000,-500.0,0.00016477,2]
[421453799,1777687838000,-8707.097223,0.00016478,2]
[421453797,1777687838000,-500.0,0.00016477,2]
[421453796,1777687838000,-500.0,0.00016477,2]
[421453795,1777687838000,-500.0,0.00016477,2]
[421453794,1777687838000,-500.0,0.00016477,2]
[421453785,1777687838000,-500.0,0.00016477,2]
[421453783,1777687838000,-500.0,0.00016477,2]
[421453792,1777687838000,-500.0,0.00016477,2]
[421453793,1777687838000,-500.0,0.00016477,2]
[421453789,1777687838000,-500.0,0.00016477,2]
[421453791,1777687838000,-500.0,0.00016477,2]
[421453787,1777687838000,-500.0,0.00016477,2]
[421453781,1777687838000,-500.0,0.00016477,2]
[421453776,1777687838000,-500.0,0.00016477,2]
[421453774,1777687838000,-500.0,0.00016477,2]
[421453778,1777687838000,-500.0,0.00016477,2]
[421453762,1777687838000,-500.0,0.00016477,2]
[421453764,1777687838000,-500.0,0.00016477,2]
[421453767,1777687838000,-500.0,0.00016477,2]
[421453768,1777687838000,-500.0,0.00016477,2]
[421453766,1777687838000,-500.0,0.00016477,2]
[421453765,1777687838000,-500.0,0.00016477,2]
[421453770,1777687838000,-500.0,0.00016477,2]
[421453771,1777687838000,-500.0,0.00016477,2]
[421453769,1777687838000,-500.0,0.00016477,2]
[421453773,1777687838000,-500.0,0.00016477,2]
[421453829,1777687840000,-532.50328,0.00016677,2]
[421453824,1777687840000,-647.58872,0.00016677,2]
[421453831,1777687840000,-532.50328,0.00016677,2]
[421453822,1777687840000,-151.0,0.00016677,2]
[421453826,1777687840000,-647.58872,0.00016677,2]
[421453825,1777687840000,-151.0,0.00016677,2]
[421453821,1777687840000,-500.0,0.00016677,2]
[421453842,1777687840000,-647.58872,0.00016678,2]
[421453827,1777687840000,-647.58872,0.00016677,2]
[421453828,1777687840000,-647.58872,0.00016677,2]